bitfinex-derivatives/quotes_ETHF0:USTF0_20250727
["timestamp","ask_amount","ask_price","bid_price","bid_amount"]
[1753597893704,3.69298,3775.9,3775.8,22.87518236]
[1753597894005,3.69298,3775.9,3775.8,21.24898236]
[1753597894399,3.69298,3775.9,3775.8,21.97338236]
[1753597894909,3.69298,3775.9,3775.8,0.92038236]
[1753597895901,3.69298,3775.9,3775.8,1.43918236]
[1753597896101,3.69298,3775.9,3775.8,1.82218236]
[1753597897405,3.69298,3775.9,3775.8,0.19598236]
[1753597899508,3.69298,3775.9,3775.8,0.92038236]
[1753597900800,3.69298,3775.9,3775.8,1.82218236]
[1753597901207,3.69298,3775.9,3775.8,2.38258236]
[1753597902810,3.69298,3775.9,3775.8,1.82218236]
[1753597903509,3.19478,3775.9,3775.8,2.38258236]
[1753597904109,3.69298,3775.9,3775.8,2.38258236]
[1753597904807,3.69298,3775.9,3775.8,0.19598236]
[1753597906105,4.53488627,3775.9,3775.8,0.19598236]
[1753597908507,3.69298,3775.9,3775.8,0.19598236]
[1753597908808,3.69298,3775.9,3775.0,3.2078]
[1753597908809,3.1949,3775.1,3775.0,2.1866]
[1753597909011,6.4027,3775.1,3775.0,2.1866]
[1753597912112,6.9009,3775.1,3775.0,2.1866]
[1753597913312,3.2078,3775.1,3775.0,2.1866]
[1753597913514,3.2078,3775.1,3775.0,2.71621]
[1753597913714,0.52958,3775.3,3775.2,2.1866]
[1753597914117,1.49248,3775.3,3775.2,2.1866]
[1753597914313,2.05778,3775.3,3775.2,2.1866]
[1753597914516,3.19488,3775.3,3775.2,2.1866]
[1753597914715,3.69308,3775.3,3775.2,2.1866]
[1753597917807,2.93968,3775.3,3775.2,2.1866]
[1753597918008,3.65928,3775.3,3775.2,2.1866]
[1753597919513,0.7337,3774.8,3774.7,1.5909]
[1753597919823,2.46744,3774.8,3774.7,2.1391]
[1753597920319,3.56124,3774.8,3774.7,2.1391]
[1753597921014,3.2078,3775.1,3774.7,7.1391]
[1753597921318,0.52957,3775.3,3775.2,2.1391]
[1753597922320,1.07717,3775.3,3775.2,2.1391]
[1753597925710,2.35707,3775.3,3775.2,2.1391]
[1753597926322,3.07667,3775.3,3775.2,2.1391]
[1753597926623,2.35707,3775.3,3775.2,2.1391]
[1753597927920,3.07667,3775.3,3775.2,2.1391]
[1753597931222,3.56117,3775.3,3775.2,2.1391]
[1753597932423,3.2078,3775.6,3775.4,0.8762]
[1753597932424,0.5476,3775.5,3775.4,0.8762]
[1753597932626,0.52953,3775.6,3775.5,1.40573]
[1753597932825,0.52953,3775.6,3775.5,2.66863]
[1753597933027,1.07713,3775.6,3775.5,2.66863]
[1753597933227,1.07713,3775.6,3775.5,2.1391]
[1753597933427,1.43063,3775.6,3775.5,2.66864]
[1753597933930,1.97683,3775.6,3775.5,2.66864]
[1753597935531,0.9011,3775.6,3775.5,2.66864]
[1753597935728,0.3535,3775.6,3775.5,2.66864]
[1753597935932,0.88303,3775.6,3775.5,2.66864]
[1753597936933,0.3535,3775.6,3775.5,2.66864]
[1753597937431,3.0766,3775.8,3775.7,2.1391]
[1753597937743,1.8108,3775.8,3775.7,2.66861]
[1753597937941,1.8275,3775.8,3775.7,2.66861]
[1753597938236,2.5471,3775.8,3775.7,2.66861]
[1753597938740,2.357,3775.8,3775.7,2.66861]
[1753597938938,1.0731,3776.0,3775.7,1.2629]
[1753597939146,1.43058,3776.0,3775.9,2.1391]
[1753597939641,1.97678,3776.0,3775.9,2.1391]
[1753597940246,3.56108,3776.0,3775.9,2.1391]
[1753597942347,3.56108,3776.0,3775.9,2.66858]
[1753597942543,3.56108,3776.0,3775.9,2.1391]
[1753597943041,3.56108,3776.0,3775.9,2.66858]
[1753597943042,1.43058,3776.0,3775.9,2.66858]
[1753597943248,0.9011,3776.0,3775.9,2.66858]
[1753597943446,0.52946,3776.1,3775.9,2.66858]
[1753597943650,1.07706,3776.1,3776.0,2.66857]
[1753597943843,0.5476,3776.1,3776.0,2.66857]
[1753597944044,1.07565,3776.2,3776.1,0.52946]
[1753597944243,1.62325,3776.2,3776.1,2.66856]
[1753597944847,1.62325,3776.2,3776.1,2.88034306]
[1753597945047,5.0353,3776.4,3776.3,2.66853]
[1753597945249,5.56471,3776.4,3776.3,2.1391]
[1753597945443,6.04921,3776.4,3776.3,2.1391]
[1753597945650,6.76881,3776.4,3776.3,2.1391]
[1753597947152,3.56101,3776.4,3776.3,2.1391]
[1753597950153,3.2078,3776.5,3775.9,0.8315]
[1753597950154,1.2503,3776.0,3775.9,0.8315]
[1753597950453,3.57167,3776.0,3775.9,0.8315]
[1753597950752,3.57167,3776.0,3775.9,2.1154]
[1753597955155,1.05286,3776.1,3776.0,2.1154]
[1753597955655,2.5442,3776.1,3776.0,5.85267]
[1753597955858,1.2757,3776.1,3776.0,5.85267]
[1753597956953,2.69963,3776.3,3776.2,0.8315]
[1753597957156,2.69963,3776.3,3776.2,2.1154]
[1753597957758,2.1702,3776.3,3776.2,2.1154]
[1753597957957,2.1702,3776.3,3776.2,2.64484]
[1753597958159,1.4511,3776.3,3776.2,2.64484]
[1753597958657,1.83112,3776.4,3776.3,2.1154]
[1753597958852,2.5188,3776.4,3776.3,2.1154]
[1753597959257,3.57161,3776.4,3776.3,2.1154]
[1753597959460,3.0422,3776.4,3776.3,2.1154]
[1753597959654,3.0422,3776.4,3776.3,2.64483]
[1753597959959,0.9017,3776.4,3776.3,2.64483]
[1753597960459,1.8251,3776.6,3776.5,2.6448]
[1753597960658,1.2757,3776.6,3776.5,2.6448]
[1753597960855,0.9017,3776.6,3776.5,2.6448]
[1753597961854,0.9017,3776.6,3776.0,4.53148]
[1753597961855,1.4511,3776.8,3776.7,1.36087]
[1753597962055,1.4511,3776.8,3776.7,2.64477]
[1753597962452,1.8251,3776.8,3776.7,2.64477]
[1753597962857,2.5442,3776.8,3776.7,2.64477]
[1753597963061,3.0422,3776.8,3776.7,2.64477]
[1753597966865,3.2078,3777.3,3776.7,2.64477]
[1753597966866,1.2757,3777.3,3777.2,2.6447]
[1753597967363,2.5442,3777.3,3777.2,2.6447]
[1753597967762,3.0422,3777.3,3777.2,2.6447]
[1753597970568,3.0422,3777.3,3777.2,1.5522]
[1753597971060,1.2503,3777.0,3776.9,1.92403]
[1753597971267,3.0422,3777.0,3776.9,22.97703]
[1753597971764,3.0422,3777.0,3776.9,23.69773]
[1753597973064,3.0422,3777.0,3776.9,23.69673]
[1753597973465,3.0422,3777.0,3776.9,23.13453]
[1753597973768,3.0422,3777.0,3776.9,23.69773]
[1753597978870,3.57153,3777.0,3776.9,21.046]
[1753597979068,3.57153,3777.0,3776.9,21.57534]
[1753597979369,1.77963,3777.0,3776.9,21.043]
[1753597979966,3.53533,3777.0,3776.9,21.043]
[1753597980566,1.1613,3776.8,3776.5,1.2211]
[1753597980765,0.52939,3776.6,3776.4,0.52941]
[1753597980974,1.1613,3776.5,3776.3,3.2078]
[1753597981266,1.1613,3775.8,3775.7,5.09341]
[1753597981472,2.917,3775.8,3775.7,4.0304]
[1753597981770,2.917,3775.8,3775.7,25.0774]
[1753597981969,2.917,3775.8,3775.7,26.82801]
[1753597985070,2.917,3775.8,3775.7,26.2985]
[1753597985471,2.917,3775.8,3775.7,26.82801]
[1753597986266,3.4465,3775.8,3775.7,5.2515]
[1753597986471,3.4465,3775.8,3775.7,25.762]
[1753597987371,2.917,3775.8,3775.7,25.762]
[1753597987565,3.4465,3775.8,3775.7,25.762]
[1753597987869,3.4465,3775.8,3775.7,26.2955]
[1753597988473,2.917,3775.8,3775.7,26.2955]
[1753597988677,3.4465,3775.8,3775.7,26.2955]
[1753597989168,2.917,3775.8,3775.7,26.82501]
[1753597992376,2.917,3775.8,3775.7,26.82301]
[1753597993276,2.917,3775.8,3775.7,5.78101]
[1753597993476,2.917,3775.8,3775.7,26.82301]
[1753597994578,3.4465,3775.8,3775.7,1.5102]
[1753597994872,3.4465,3775.8,3775.7,21.8646]
[1753597995176,3.4465,3775.8,3775.7,22.5522]
[1753597995476,3.4465,3775.8,3775.7,23.0857]
[1753597998676,3.44654,3775.5,3775.4,39.3511]
[1753597998977,3.44654,3775.5,3775.4,60.3931]
[1753598000670,3.44654,3775.5,3775.4,60.92265]
[1753598000878,3.44654,3775.5,3775.4,60.3931]
[1753598001280,3.44654,3775.5,3775.4,60.92265]
[1753598002183,3.44654,3775.5,3775.4,60.3931]
[1753598002478,3.44654,3775.5,3775.4,59.173]
[1753598002679,3.44654,3775.5,3775.4,60.3941]
[1753598005486,3.44654,3775.5,3775.4,60.3951]
[1753598007482,1.7551,3775.4,3775.1,1.2167]
[1753598007680,3.44428,3775.2,3775.1,1.5212]
[1753598007982,3.44428,3775.2,3775.1,23.0857]
[1753598009685,3.44428,3775.2,3775.1,2.0417]
[1753598009886,3.44428,3775.2,3775.1,23.0857]
[1753598010581,0.52958,3775.2,3775.1,23.6153]
[1753598010776,1.40248,3775.2,3775.1,23.0857]
[1753598011782,2.99778,3775.2,3775.1,2.0417]
[1753598011984,3.44428,3775.2,3775.1,2.0417]
[1753598018090,1.6102,3775.4,3775.1,2.0417]
[1753598018292,2.48885,3775.4,3775.3,2.0417]
[1753598018887,3.44425,3775.4,3775.3,2.0417]
[1753598019990,2.9147,3775.4,3775.3,2.57127]
[1753598020291,3.44425,3775.4,3775.3,1.5212]
[1753598020492,6.65205,3775.4,3775.3,1.5212]
[1753598020888,6.65205,3775.4,3775.3,2.0417]
[1753598023493,1.32517,3775.3,3775.2,21.046]
[1753598023791,3.44427,3775.3,3775.2,21.046]
[1753598024090,3.4443,3775.1,3775.0,23.1287]
[1753598024590,3.4443,3775.1,3775.0,22.6082]
[1753598026291,3.4443,3775.1,3775.0,23.1287]
[1753598026590,3.4443,3775.1,3774.9,0.52962]
[1753598026788,3.44434,3774.8,3774.7,2.0417]
[1753598027093,3.44434,3774.8,3774.7,23.1247]
[1753598027294,2.27404,3774.8,3774.7,23.1247]
[1753598028385,2.72057,3774.6,3774.5,0.3613]
[1753598028585,2.9147,3774.6,3774.5,21.091]
[1753598028784,3.44437,3774.6,3774.5,21.091]
[1753598028991,2.9147,3774.4,3774.2,0.53904673]
[1753598029188,3.44439,3774.4,3774.3,21.093]
[1753598029389,1.68931,3774.3,3774.2,1.36404673]
[1753598029695,3.44441,3774.3,3774.2,2.06024673]
[1753598029995,3.44441,3774.3,3774.2,1.53974673]
[1753598030295,3.44441,3774.3,3774.2,2.06024673]
[1753598031792,3.44441,3774.3,3774.2,0.01854673]
[1753598032096,3.44441,3774.3,3774.2,1.53974673]
[1753598032297,3.44441,3774.3,3774.2,0.01854673]
[1753598032996,3.44441,3774.3,3774.2,0.71474673]
[1753598034792,3.44441,3774.3,3774.2,2.06024673]
[1753598041801,1.91981,3774.3,3774.2,2.06024673]
[1753598041997,2.27721,3774.3,3774.2,2.06024673]
[1753598042197,3.45561,3774.3,3774.2,2.06024673]
[1753598042700,1.39421,3774.3,3774.2,2.06024673]
[1753598043105,3.45561,3774.3,3774.2,2.06024673]
[1753598045604,3.45561,3774.3,3774.2,0.01854673]
[1753598046404,3.45561,3774.3,3774.2,1.01564673]
[1753598048199,3.45561,3774.3,3774.2,0.01854673]
[1753598048603,3.45561,3774.3,3774.2,1.01564673]
[1753598050600,3.45561,3774.3,3774.2,0.01854673]
[1753598051205,3.45561,3774.3,3774.2,0.67124673]
[1753598051707,3.45561,3774.3,3774.2,1.01564673]
[1753598053110,3.45561,3774.3,3774.2,1.47884673]
[1753598053407,3.45561,3774.3,3774.2,1.99964673]
[1753598054307,3.45561,3774.3,3774.2,0.48174673]
[1753598054915,3.45561,3774.3,3774.2,1.47884673]
[1753598055305,3.45561,3774.3,3774.2,1.99964673]
[1753598058809,3.45561,3774.3,3774.2,0.01854673]
[1753598059716,0.52971,3774.3,3774.2,1.99964673]
[1753598060012,2.27718,3774.5,3774.4,1.9811]
[1753598060807,1.39418,3774.5,3774.4,1.9811]
[1753598061114,0.52968,3774.5,3774.4,1.9811]
[1753598061303,3.73747,3774.6,3774.5,2.51078]
[1753598061507,3.73747,3774.6,3774.5,1.9811]
[1753598061912,3.73747,3774.6,3774.5,2.51078]
[1753598062707,3.2078,3774.6,3774.5,2.51078]
[1753598063607,3.73747,3774.6,3774.5,1.9811]
[1753598065913,3.2078,3774.6,3774.5,1.9811]
[1753598066216,3.2078,3774.6,3774.5,2.51078]
[1753598068817,3.2078,3775.0,3774.9,2.50792]
[1753598069016,3.2078,3775.4,3775.3,1.29617]
[1753598069216,3.2078,3775.4,3775.3,2.50787]
[1753598069619,0.81,3776.1,3776.0,2.50777]
[1753598069814,1.16802743,3776.1,3776.0,2.50777]
[1753598070111,0.84432743,3776.1,3776.0,2.50777]
[1753598071020,4.0178,3776.6,3776.5,2.5077]
[1753598071318,0.81,3776.8,3776.7,2.50767]
[1753598071620,4.19490039,3776.8,3776.7,1.9783]
[1753598071815,4.19490039,3776.8,3776.7,0.4458]
[1753598072120,1.62889,3776.6,3776.5,1.4533]
[1753598072308,7.40273039,3776.6,3776.5,1.4533]
[1753598072708,3.35371,3776.4,3776.3,1.9783]
[1753598073222,2.8243,3776.4,3776.3,1.9783]
[1753598073425,3.35371,3776.4,3776.3,1.9783]
[1753598073916,6.56151,3776.4,3776.3,1.9783]
[1753598075517,6.56151,3776.4,3776.3,0.8458]
[1753598075716,6.56151,3776.4,3776.3,0.3208]
[1753598075916,2.338,3775.8,3775.7,0.7666]
[1753598076214,3.35383,3775.6,3775.5,0.7666]
[1753598076425,3.35387,3775.3,3775.2,1.9783]
[1753598080616,3.35391,3775.0,3774.9,1.9783]
[1753598084323,0.81,3775.0,3774.9,1.9783]
[1753598084518,0.81,3775.0,3774.9,2.50792]
[1753598084919,1.33961,3775.0,3774.9,2.50792]
[1753598085122,2.21781,3775.0,3774.9,2.50792]
[1753598085420,1.6882,3775.0,3774.9,2.50792]
[1753598087325,2.3952,3775.0,3774.9,2.50792]
[1753598088127,2.8243,3775.0,3774.9,2.50792]
[1753598088827,3.35391,3775.0,3774.9,2.50792]
[1753598090828,2.8243,3775.0,3774.9,2.50792]
[1753598091936,3.35391,3775.0,3774.9,2.50792]
[1753598092926,2.8243,3775.0,3774.9,2.50792]
[1753598093931,0.81,3775.5,3775.2,0.7666]
[1753598094132,1.3415,3775.5,3775.4,1.29615]
[1753598094332,1.6882,3775.5,3775.4,2.50785]
[1753598094536,2.8243,3775.5,3775.4,2.50785]
[1753598095226,2.1173,3775.5,3775.4,2.50785]
[1753598095425,1.6882,3775.7,3775.6,2.50783]
[1753598095628,0.3237,3775.7,3775.6,23.59783]
[1753598097140,0.81,3775.7,3775.6,23.59783]
[1753598098238,1.3305,3775.7,3775.6,23.59783]
[1753598098938,1.6519,3775.7,3775.6,23.59783]
[1753598101533,0.81,3775.7,3775.6,23.59783]
[1753598101935,1.3305,3775.7,3775.6,23.59783]
[1753598102131,1.6519,3775.7,3775.6,23.59783]
[1753598102937,2.3321,3775.7,3775.6,23.59783]
[1753598104843,1.6519,3775.7,3775.6,23.59783]
[1753598105541,2.3321,3775.7,3775.6,23.59783]
[1753598106553,2.7762,3775.7,3775.6,23.59783]
[1753598109746,0.81,3775.7,3775.6,23.59783]
[1753598109941,3.30111,3775.7,3775.6,1.4533]
[1753598110146,3.30111,3775.7,3775.6,22.5193]
[1753598110448,3.30111,3775.7,3775.6,23.04883]
[1753598110645,3.30111,3775.7,3775.6,1.9569]
[1753598110846,2.1151,3775.5,3775.4,2.48675]
[1753598111046,2.1151,3775.5,3775.4,23.55975]
[1753598111047,2.7953,3775.5,3775.4,23.55975]
[1753598114864,2.7953,3775.4,3775.3,5.02336]
[1753598115051,2.7953,3775.4,3775.3,23.55576]
[1753598134172,3.32485,3775.4,3775.3,23.0262]
[1753598134373,2.7953,3775.4,3775.3,23.55577]
[1753598135070,3.32485,3775.4,3775.3,23.55577]
[1753598135264,2.7953,3775.4,3775.3,23.55577]
[1753598135669,3.32485,3775.4,3775.3,23.55577]
[1753598135867,3.32485,3775.4,3775.3,21.8514]
[1753598136071,3.32485,3775.4,3775.3,21.069]
[1753598136272,2.7056,3775.0,3774.7,0.52965]
[1753598136469,3.23523,3774.9,3774.8,21.7049]
[1753598136867,3.23523,3774.9,3774.8,22.0207]
[1753598137065,3.23523,3774.9,3774.8,22.0237]
[1753598137265,3.23523,3774.9,3774.8,22.4745]
[1753598137469,3.23523,3774.9,3774.8,22.9399]
[1753598144273,3.23523,3774.9,3774.8,23.46954]
[1753598144875,2.7056,3774.9,3774.8,23.46954]
[1753598145374,3.23522,3774.9,3774.8,23.46954]
[1753598145575,2.7056,3774.9,3774.8,23.46954]
[1753598147772,0.8067,3774.9,3774.8,23.46954]
[1753598147973,3.23518,3775.2,3775.1,0.7666]
[1753598148279,3.23518,3775.2,3775.1,22.9329]
[1753598149780,2.7056,3775.2,3775.1,22.9329]
[1753598150577,2.7056,3775.2,3775.1,23.4625]
[1753598152974,1.3019,3775.5,3775.4,2.08865]
[1753598153179,4.2755,3775.9,3775.8,0.7666]
[1753598153382,4.2755,3775.9,3775.8,23.4624]
[1753598153577,4.80498,3775.9,3775.8,22.9329]
[1753598153779,6.44288,3775.9,3775.8,22.9329]
[1753598155285,6.44288,3775.9,3775.8,1.4095]
[1753598155679,3.23508,3775.9,3775.8,1.0937]
[1753598156183,3.23508,3775.9,3775.7,21.057]
[1753598156184,1.5972,3775.8,3775.7,21.057]
[1753598156383,3.2351,3775.8,3775.7,22.22941]
[1753598156883,3.2351,3775.8,3775.7,21.6999]
[1753598157283,3.2351,3775.8,3775.7,22.22941]
[1753598157685,2.7056,3775.8,3775.7,22.22941]
[1753598157884,3.2351,3775.8,3775.7,22.54521]
[1753598158080,3.2351,3775.8,3775.7,22.99601]
[1753598158481,3.2351,3775.8,3775.7,23.45781]
[1753598158782,3.2351,3775.8,3775.7,22.9283]
[1753598161986,1.7329,3775.3,3775.2,1.89487]
[1753598162186,1.7329,3775.3,3775.2,22.95087]
[1753598162493,2.6768,3775.3,3775.2,23.41267]
[1753598162984,3.20637,3775.3,3775.2,22.8831]
[1753598163586,3.20637,3775.3,3775.2,23.41268]
[1753598164489,2.6768,3775.3,3775.2,23.41268]
[1753598164889,1.5897,3775.3,3775.2,23.41268]
[1753598165088,0.7756,3775.3,3775.2,23.41268]
[1753598166787,0.4785,3775.5,3775.4,1.0859]
[1753598166788,0.52955,3775.5,3775.4,1.0859]
[1753598167086,0.52955,3775.5,3775.4,22.8831]
[1753598167289,2.76575,3775.5,3775.4,22.8831]
[1753598167688,3.20635,3775.5,3775.4,22.8831]
[1753598168991,2.6768,3775.5,3775.4,22.8831]
[1753598169191,2.6768,3775.5,3775.4,23.41265]
[1753598169487,2.6768,3775.5,3775.4,22.8831]
[1753598169690,2.6768,3775.5,3775.4,23.41265]
[1753598170591,2.2114,3775.9,3775.8,0.84479]
[1753598170791,2.2114,3775.9,3775.8,23.41259]
[1753598171185,2.6768,3775.9,3775.8,23.41259]
[1753598175385,2.0303,3775.9,3775.8,23.41259]
[1753598175789,2.6768,3775.9,3775.8,23.41259]
[1753598178992,1.1112,3775.9,3775.8,23.41259]
[1753598179196,0.7756,3775.9,3775.8,23.41259]
[1753598181499,0.9439,3776.1,3776.0,2.35657]
[1753598181700,2.2362,3776.4,3776.3,2.35652]
[1753598181997,3.20621,3776.4,3776.3,23.41053]
[1753598182201,3.20621,3776.4,3776.3,22.8811]
[1753598182399,3.20621,3776.4,3776.3,23.41053]
[1753598182588,2.6768,3776.4,3776.3,23.41053]
[1753598182991,2.0303,3776.4,3776.3,23.41053]
[1753598183195,3.20621,3776.4,3776.3,22.4183]
[1753598183596,3.20621,3776.4,3776.3,22.94773]
[1753598183597,2.6768,3776.4,3776.3,22.94773]
[1753598183797,3.20621,3776.4,3776.3,22.94773]
[1753598184094,2.6768,3776.4,3776.3,23.40953]
[1753598184601,2.6768,3776.4,3776.3,21.052]
[1753598184802,3.20621,3776.4,3776.3,21.58143]
[1753598185206,3.20621,3776.4,3776.3,22.52083]
[1753598185397,3.20621,3776.4,3776.3,23.40853]
[1753598185596,2.6768,3776.4,3776.3,23.40853]
[1753598186103,1.1112,3776.4,3776.3,23.40853]
[1753598188599,0.7756,3776.4,3776.3,23.40853]
[1753598188800,3.2078,3776.5,3776.4,1.24941]
[1753598189001,0.3069,3776.7,3776.6,1.24939]
[1753598189198,0.7575,3776.7,3776.6,23.37949]
[1753598189598,1.2489,3776.7,3776.6,23.37949]
[1753598189795,1.4739,3777.0,3776.9,0.84764]
[1753598190000,0.3069,3777.0,3776.9,23.37944]
[1753598190509,0.7983,3777.0,3776.9,23.37944]
[1753598190899,1.5665,3777.0,3776.9,23.37944]
[1753598192408,1.1159,3777.2,3777.1,2.32842]
[1753598192603,1.5665,3777.2,3777.1,23.37842]
[1753598193102,2.6191,3777.2,3777.1,23.37842]
[1753598193905,1.9653,3777.2,3777.1,23.37842]
[1753598194106,1.5665,3777.2,3777.1,23.37842]
[1753598194504,1.9653,3777.2,3777.1,23.37842]
[1753598194709,2.6191,3777.2,3777.1,23.37842]
[1753598200217,1.2489,3777.5,3777.4,1.24927]
[1753598200400,1.2489,3777.5,3777.4,23.37437]
[1753598201814,0.2,3777.9,3777.8,0.72]
[1753598202105,1.4489,3777.9,3777.8,23.37432]
[1753598202408,0.2,3777.9,3777.8,23.37432]
[1753598204702,3.2078,3778.2,3778.1,0.52918]
[1753598204908,3.2078,3778.2,3778.1,23.37228]
[1753598206210,3.6992,3778.2,3778.1,23.37228]
[1753598206414,0.4914,3778.2,3778.1,23.37228]
[1753598206621,2.6191,3778.5,3778.4,2.32823]
[1753598206810,2.6191,3778.5,3778.4,23.37023]
[1753598207011,1.5665,3778.7,3778.6,1.24911]
[1753598207211,1.5665,3778.7,3778.6,23.37021]
[1753598207913,0.4506,3779.0,3778.6,22.8411]
[1753598208114,0.4506,3779.0,3778.1,3.2078]
[1753598208115,1.6771,3778.8,3778.7,0.52909]
[1753598208306,0.3069,3778.3,3778.2,0.9274]
[1753598208513,2.1277,3778.3,3778.1,3.2078]
[1753598208711,3.2078,3778.8,3777.8,0.6091]
[1753598208712,6.35606,3778.2,3777.9,0.52919]
[1753598208909,2.6191,3778.1,3778.0,21.041]
[1753598209116,2.6191,3778.1,3778.0,21.57019]
[1753598209312,2.6191,3778.1,3778.0,21.57519]
[1753598210110,3.14829,3778.1,3777.9,0.5292]
[1753598210413,1.55249,3778.1,3778.0,21.044]
[1753598210810,3.14829,3778.1,3778.0,21.044]
[1753598211014,0.942,3778.0,3777.9,0.5292]
[1753598211218,2.6191,3778.0,3777.9,21.5722]
[1753598211416,1.9027,3777.8,3777.7,0.52923]
[1753598211617,2.6191,3777.8,3777.7,21.57223]
[1753598212113,2.6191,3777.8,3777.7,22.90133]
[1753598212419,1.2783,3778.1,3778.0,0.72]
[1753598212618,2.2203,3778.1,3778.0,22.8411]
[1753598212812,2.2203,3778.1,3778.0,23.37029]
[1753598213210,0.3069,3778.1,3778.0,23.37029]
[1753598213415,1.4521,3778.3,3778.2,1.24916]
[1753598213613,1.9027,3778.3,3778.2,2.32826]
[1753598213918,2.2203,3778.3,3778.2,2.32826]
[1753598214812,2.6191,3778.3,3778.2,2.32826]
[1753598219920,2.6191,3778.3,3778.2,1.19]
[1753598220125,2.6191,3778.3,3778.2,21.56816]
[1753598220521,2.6191,3778.3,3778.2,21.86316]
[1753598220722,2.6191,3778.3,3778.2,22.47916]
[1753598221325,2.6191,3778.3,3778.2,22.91006]
[1753598222222,2.6191,3778.3,3778.2,23.39446]
[1753598223931,2.5734,3778.5,3778.4,2.35543]
[1753598225436,3.10252,3778.5,3778.4,1.8263]
[1753598225732,1.0167,3777.5,3777.4,0.52927]
[1753598225930,2.5734,3777.5,3777.4,22.29317]
[1753598226130,2.5734,3777.5,3777.4,1.8263]
[1753598226336,2.5734,3777.5,3777.4,23.39357]
[1753598226532,2.5734,3777.5,3777.4,0.7259]
[1753598226730,3.10266,3777.5,3777.4,21.7699]
[1753598227937,3.10266,3777.5,3777.4,21.044]
[1753598228131,0.6208,3777.2,3776.9,3.2078]
[1753598228339,1.6375,3777.0,3776.9,0.82434]
[1753598228533,1.6375,3777.0,3776.9,21.87534]
[1753598228738,1.6375,3777.0,3776.9,22.92224]
[1753598228927,2.5734,3777.0,3776.9,23.40664]
[1753598230433,3.10273,3777.0,3776.9,22.8773]
[1753598230743,1.0167,3776.7,3776.6,1.2103]
[1753598231037,2.5734,3776.7,3776.6,23.40469]
[1753598231428,0.7458,3777.0,3776.9,0.7259]
[1753598231736,0.7458,3777.0,3776.9,23.40464]
[1753598232141,1.5327,3777.0,3776.9,23.40464]
[1753598232431,2.5734,3777.0,3776.9,23.40464]
[1753598232826,3.10273,3777.0,3776.9,22.3939]
[1753598233033,2.5734,3777.0,3776.9,22.3939]
[1753598233536,2.5734,3777.0,3776.9,22.8783]
[1753598233736,2.5734,3777.0,3776.9,23.40764]
[1753598237436,2.5734,3777.0,3776.9,22.3939]
[1753598237837,2.5734,3777.0,3776.9,21.7779]
[1753598238036,2.5734,3777.0,3776.9,22.3939]
[1753598238339,2.5734,3777.0,3776.9,22.8783]
[1753598238745,2.5734,3777.0,3776.9,23.40764]
[1753598241338,2.5734,3777.2,3777.1,1.8263]
[1753598241539,3.1027,3777.2,3777.1,21.044]
[1753598242543,3.1027,3777.2,3777.1,21.57332]
[1753598243342,3.1027,3777.2,3777.1,21.044]
[1753598247445,3.1027,3777.2,3777.1,21.676]
[1753598247642,3.1027,3777.2,3777.1,22.7993]
[1753598258662,3.1027,3777.2,3777.1,23.32862]
[1753598261363,3.1027,3777.2,3777.1,22.7993]
[1753598262062,3.1027,3777.2,3777.1,23.32862]
[1753598262365,3.1027,3777.2,3777.1,22.7993]
[1753598264168,3.1027,3777.2,3777.1,23.32862]
[1753598264368,3.1027,3777.2,3777.1,22.7993]
[1753598264564,3.1027,3777.2,3777.1,23.32862]
[1753598264764,3.1027,3777.2,3777.1,22.7993]
[1753598265170,3.1027,3777.2,3777.1,23.32862]
[1753598265671,1.9526,3777.2,3777.1,23.32862]
[1753598265970,3.0623,3777.2,3777.1,23.32862]
[1753598267170,3.9846,3777.4,3777.3,1.23689]
[1753598267369,5.2786,3777.4,3777.3,23.34919]
[1753598267869,3.9415,3777.4,3777.3,23.34919]
[1753598268168,3.2078,3777.8,3777.7,1.67213]
[1753598268371,3.9415,3777.8,3777.7,23.34913]
[1753598268572,4.4221,3777.8,3777.7,23.34913]
[1753598268774,4.7159,3777.8,3777.7,23.34913]
[1753598269371,3.9415,3777.8,3777.7,23.34913]
[1753598269579,3.504,3777.8,3777.7,23.34913]
[1753598270077,6.24532,3777.8,3777.7,23.34913]
[1753598270674,6.24532,3777.8,3777.7,22.8199]
[1753598271980,6.24532,3777.8,3777.7,23.34913]
[1753598272779,5.7161,3777.8,3777.7,23.34913]
[1753598273984,6.24532,3777.8,3777.7,23.34913]
[1753598274884,5.7161,3777.8,3777.7,23.34913]
[1753598275383,6.24532,3777.8,3777.7,23.34913]
[1753598275883,3.2078,3777.8,3777.7,23.34913]
[1753598276383,0.4375,3778.2,3778.1,1.23678]
[1753598276681,3.03744,3778.4,3778.3,1.025]
[1753598276880,3.03748,3778.1,3778.0,0.632]
[1753598277078,3.03748,3778.1,3778.0,21.674]
[1753598279485,3.03748,3778.1,3778.0,22.8367]
[1753598279681,3.03748,3778.1,3778.0,23.36589]
[1753598281186,1.5081,3778.1,3778.0,23.36589]
[1753598281387,0.7337,3778.1,3778.0,23.36589]
[1753598281783,2.5148,3778.1,3778.0,23.36589]
[1753598282083,3.04398,3778.1,3778.0,1.3286]
[1753598282278,3.04398,3778.1,3778.0,21.04]
[1753598282482,1.53609,3778.0,3777.9,0.7251]
[1753598282684,3.05369,3778.0,3777.9,22.2312]
[1753598283088,3.05369,3778.0,3777.9,22.867]